[Event "Titled Tuesday Blitz May 17 Late 2022"]
[White "Ambartsumova, Karina"]
[Black "Tologon tegin, Semetei"]
[WhiteFideId "4166299"]
[BlackFideId "13800574"]
[WhiteElo "2262"]
[BlackElo "2258"]
[Result "0-1"]
[Round "11"]
[TimeControl "180+1"]
[Date "2022.05.17"]
[WhiteClock "0:00:03"]
[BlackClock "0:00:02"]

1. d4 {[%clk 0:03:00]}  Nf6 {[%clk 0:02:54]} 2. Nf3 {[%clk 0:03:00]}  g6 {[%clk 0:02:55]} 3. g3 {[%clk 0:03:01]}  Bg7 {[%clk 0:02:55]} 4. Bg2 {[%clk 0:03:01]}  O-O {[%clk 0:02:55]} 5. O-O {[%clk 0:03:01]}  d5 {[%clk 0:02:54]} 6. b3 {[%clk 0:03:02]}  a5 {[%clk 0:02:53]} 7. c4 {[%clk 0:02:56]}  a4 {[%clk 0:02:53]} 8. Bb2 {[%clk 0:02:56]}  c6 {[%clk 0:02:50]} 9. Nbd2 {[%clk 0:02:44]}  Qa5 {[%clk 0:02:50]} 10. Qc1 {[%clk 0:02:39]}  Bg4 {[%clk 0:02:47]} 11. Bc3 {[%clk 0:02:36]}  Qb6 {[%clk 0:02:42]} 12. Re1 {[%clk 0:02:30]}  Nbd7 {[%clk 0:02:39]} 13. c5 {[%clk 0:02:26]}  Qa6 {[%clk 0:02:39]} 14. b4 {[%clk 0:02:22]}  b5 {[%clk 0:02:37]} 15. h3 {[%clk 0:02:10]}  Bxf3 {[%clk 0:02:28]} 16. exf3 {[%clk 0:02:04]}  e6 {[%clk 0:02:28]} 17. f4 {[%clk 0:02:00]}  Rfe8 {[%clk 0:02:26]} 18. Bf3 {[%clk 0:01:56]}  Nf8 {[%clk 0:02:20]} 19. Kg2 {[%clk 0:01:55]}  N6d7 {[%clk 0:02:20]} 20. h4 {[%clk 0:01:50]}  f5 {[%clk 0:02:20]} 21. h5 {[%clk 0:01:46]}  Nf6 {[%clk 0:02:19]} 22. hxg6 {[%clk 0:01:46]}  hxg6 {[%clk 0:02:20]} 23. Be2 {[%clk 0:01:34]}  Ne4 {[%clk 0:02:18]} 24. Nf3 {[%clk 0:01:33]}  Qb7 {[%clk 0:02:14]} 25. Ne5 {[%clk 0:01:25]}  Bxe5 {[%clk 0:02:09]} 26. fxe5 {[%clk 0:01:26]}  Qg7 {[%clk 0:01:58]} 27. Rh1 {[%clk 0:01:20]}  Kf7 {[%clk 0:01:58]} 28. f3 {[%clk 0:01:12]}  Nxc3 {[%clk 0:01:57]} 29. Qxc3 {[%clk 0:01:13]}  Nd7 {[%clk 0:01:51]} 30. Qe3 {[%clk 0:01:09]}  g5 {[%clk 0:01:49]} 31. Rh5 {[%clk 0:01:03]}  Rh8 {[%clk 0:01:46]} 32. Qxg5 {[%clk 0:00:55]}  Qxg5 {[%clk 0:01:43]} 33. Rxg5 {[%clk 0:00:56]}  Rh6 {[%clk 0:01:34]} 34. Rg1 {[%clk 0:00:44]}  Rah8 {[%clk 0:01:33]} 35. Kf2 {[%clk 0:00:43]}  Rh2+ {[%clk 0:01:25]} 36. Rg2 {[%clk 0:00:43]}  Nf8 {[%clk 0:01:25]} 37. f4 {[%clk 0:00:37]}  Rh1 {[%clk 0:01:22]} 38. g4 {[%clk 0:00:31]}  Nh7 {[%clk 0:01:12]} 39. Rh5 {[%clk 0:00:29]}  Rxh5 {[%clk 0:01:11]} 40. gxh5 {[%clk 0:00:30]}  Nf8 {[%clk 0:01:06]} 41. Rg5 {[%clk 0:00:28]}  Rh6 {[%clk 0:01:05]} 42. a3 {[%clk 0:00:27]}  Nh7 {[%clk 0:01:05]} 43. Rg1 {[%clk 0:00:24]}  Nf8 {[%clk 0:01:05]} 44. Kg3 {[%clk 0:00:24]}  Rh7 {[%clk 0:01:01]} 45. Kf2 {[%clk 0:00:17]}  Rh6 {[%clk 0:00:55]} 46. Rg3 {[%clk 0:00:17]}  Nd7 {[%clk 0:00:46]} 47. Kg2 {[%clk 0:00:13]}  Rh8 {[%clk 0:00:39]} 48. Kh3 {[%clk 0:00:13]}  Nb8 {[%clk 0:00:38]} 49. Rg6 {[%clk 0:00:13]}  Nd7 {[%clk 0:00:36]} 50. Kh4 {[%clk 0:00:13]}  Nf8 {[%clk 0:00:25]} 51. Rf6+ {[%clk 0:00:13]}  Kg7 {[%clk 0:00:22]} 52. Bxb5 {[%clk 0:00:06]}  cxb5 {[%clk 0:00:21]} 53. c6 {[%clk 0:00:06]}  Nh7 {[%clk 0:00:09]} 54. Rxe6 {[%clk 0:00:07]}  Rc8 {[%clk 0:00:09]} 55. Rd6 {[%clk 0:00:06]}  Nf8 {[%clk 0:00:06]} 56. h6+ {[%clk 0:00:06]}  Kh7 {[%clk 0:00:05]} 57. Kg5 {[%clk 0:00:05]}  Rc7 {[%clk 0:00:05]} 58. Kxf5 {[%clk 0:00:05]}  Rf7+ {[%clk 0:00:05]} 59. Kg5 {[%clk 0:00:05]}  Rc7 {[%clk 0:00:03]} 60. f5 {[%clk 0:00:06]}  Rc8 {[%clk 0:00:02]} 61. e6 {[%clk 0:00:05]}  Rc7 {[%clk 0:00:01]} 62. f6 {[%clk 0:00:04]}  Ng6 {[%clk 0:00:01]} 63. Rd7+ {[%clk 0:00:04]}  Rxd7 {[%clk 0:00:01]} 64. exd7 {[%clk 0:00:03]}  Nf8 {[%clk 0:00:02]} 65. Kf5 {[%clk 0:00:03]}  Kxh6 {[%clk 0:00:02]} 66. d8=Q {[%clk 0:00:03]}  Ng6 {[%clk 0:00:02]} 0-1


[Site "https://www.chess.com"]

[Event "Titled Tuesday Blitz May 17 Late 2022"]
[White "D`Arruda, Ricardo D."]
[Black "Sismeiro, Miguel"]
[WhiteFideId "100692"]
[BlackFideId "1950975"]
[WhiteElo "2493"]
[BlackElo "2031"]
[Result "1-0"]
[Round "11"]
[TimeControl "180+1"]
[Date "2022.05.17"]
[WhiteClock "0:00:34"]
[BlackClock "0:00:25"]

1. d4 {[%clk 0:02:59]}  Nf6 {[%clk 0:02:59]} 2. Nf3 {[%clk 0:02:59]}  g6 {[%clk 0:02:59]} 3. Nc3 {[%clk 0:02:58]}  d5 {[%clk 0:02:59]} 4. Bg5 {[%clk 0:02:58]}  Bg7 {[%clk 0:02:59]} 5. Bxf6 {[%clk 0:02:58]}  exf6 {[%clk 0:02:36]} 6. e3 {[%clk 0:02:58]}  O-O {[%clk 0:02:33]} 7. Ne2 {[%clk 0:02:58]}  c6 {[%clk 0:02:28]} 8. c3 {[%clk 0:02:57]}  Re8 {[%clk 0:02:19]} 9. h4 {[%clk 0:02:57]}  h5 {[%clk 0:02:16]} 10. Nf4 {[%clk 0:02:54]}  Bh6 {[%clk 0:02:13]} 11. g3 {[%clk 0:02:51]}  Bg4 {[%clk 0:02:10]} 12. Be2 {[%clk 0:02:50]}  Bxf4 {[%clk 0:02:09]} 13. gxf4 {[%clk 0:02:49]}  Nd7 {[%clk 0:02:04]} 14. Qc2 {[%clk 0:02:49]}  Qe7 {[%clk 0:01:58]} 15. O-O-O {[%clk 0:02:48]}  Bf5 {[%clk 0:01:54]} 16. Bd3 {[%clk 0:02:47]}  Bxd3 {[%clk 0:01:54]} 17. Qxd3 {[%clk 0:02:46]}  Qe4 {[%clk 0:01:53]} 18. Qxe4 {[%clk 0:02:38]}  Rxe4 {[%clk 0:01:52]} 19. Rhg1 {[%clk 0:02:23]}  Nb6 {[%clk 0:01:47]} 20. Kc2 {[%clk 0:02:15]}  Re7 {[%clk 0:01:43]} 21. b3 {[%clk 0:02:09]}  Nc8 {[%clk 0:01:40]} 22. Ne1 {[%clk 0:01:59]}  Nd6 {[%clk 0:01:39]} 23. Nd3 {[%clk 0:01:59]}  a5 {[%clk 0:01:35]} 24. a4 {[%clk 0:01:57]}  b6 {[%clk 0:01:30]} 25. Kb2 {[%clk 0:01:42]}  Rc7 {[%clk 0:01:27]} 26. Ne1 {[%clk 0:01:28]}  Kf8 {[%clk 0:01:16]} 27. Nc2 {[%clk 0:01:20]}  Rb8 {[%clk 0:01:13]} 28. Ka2 {[%clk 0:01:16]}  b5 {[%clk 0:01:10]} 29. Rb1 {[%clk 0:01:09]}  Ne4 {[%clk 0:01:08]} 30. Kb2 {[%clk 0:00:53]}  bxa4 {[%clk 0:01:07]} 31. b4 {[%clk 0:00:54]}  Nxf2 {[%clk 0:00:55]} 32. Ra1 {[%clk 0:00:53]}  c5 {[%clk 0:00:38]} 33. dxc5 {[%clk 0:00:48]}  Rxc5 {[%clk 0:00:39]} 34. Rxa4 {[%clk 0:00:48]}  Ne4 {[%clk 0:00:36]} 35. Ra3 {[%clk 0:00:44]}  axb4 {[%clk 0:00:35]} 36. Nxb4 {[%clk 0:00:44]}  Nxc3 {[%clk 0:00:32]} 37. Rxc3 {[%clk 0:00:44]}  Rxb4+ {[%clk 0:00:32]} 38. Kc2 {[%clk 0:00:44]}  Rbc4 {[%clk 0:00:31]} 39. Rxc4 {[%clk 0:00:43]}  Rxc4+ {[%clk 0:00:32]} 40. Kd3 {[%clk 0:00:44]}  f5 {[%clk 0:00:32]} 41. Ra1 {[%clk 0:00:43]}  Re4 {[%clk 0:00:28]} 42. Ra8+ {[%clk 0:00:39]}  Kg7 {[%clk 0:00:27]} 43. Rd8 {[%clk 0:00:39]}  d4 {[%clk 0:00:23]} 44. Rxd4 {[%clk 0:00:38]}  Rxd4+ {[%clk 0:00:22]} 45. exd4 {[%clk 0:00:38]}  Kf6 {[%clk 0:00:22]} 46. Kc4 {[%clk 0:00:36]}  Ke6 {[%clk 0:00:23]} 47. d5+ {[%clk 0:00:35]}  Kd6 {[%clk 0:00:23]} 48. Kd4 {[%clk 0:00:35]}  f6 {[%clk 0:00:22]} 49. Kc4 {[%clk 0:00:35]}  Kd7 {[%clk 0:00:22]} 50. Kc5 {[%clk 0:00:34]}  Kc7 {[%clk 0:00:22]} 51. d6+ {[%clk 0:00:34]}  Kd7 {[%clk 0:00:23]} 52. Kd5 {[%clk 0:00:35]}  Kd8 {[%clk 0:00:19]} 53. Ke6 {[%clk 0:00:34]}  Ke8 {[%clk 0:00:18]} 54. Kxf6 {[%clk 0:00:34]}  Kd7 {[%clk 0:00:18]} 55. Kxg6 {[%clk 0:00:34]}  Kxd6 {[%clk 0:00:19]} 56. Kxf5 {[%clk 0:00:34]}  Kd5 {[%clk 0:00:20]} 57. Kg6 {[%clk 0:00:34]}  Ke4 {[%clk 0:00:21]} 58. f5 {[%clk 0:00:35]}  Kf4 {[%clk 0:00:21]} 59. f6 {[%clk 0:00:35]}  Kg4 {[%clk 0:00:22]} 60. f7 {[%clk 0:00:36]}  Kxh4 {[%clk 0:00:23]} 61. f8=Q {[%clk 0:00:36]}  Kg4 {[%clk 0:00:24]} 62. Qf5+ {[%clk 0:00:37]}  Kg3 {[%clk 0:00:25]} 63. Kxh5 {[%clk 0:00:34]} 1-0


[Site "https://www.chess.com"]

[Event "Titled Tuesday Blitz May 17 Late 2022"]
[White "Dubov, Daniil"]
[Black "Holt, Conrad"]
[WhiteFideId "24126055"]
[BlackFideId "2034387"]
[WhiteElo "2791"]
[BlackElo "2586"]
[Result "0-1"]
[Round "11"]
[TimeControl "180+1"]
[Date "2022.05.17"]
[WhiteClock "0:00:17"]
[BlackClock "0:00:07"]

1. d4 {[%clk 0:03:00]}  d5 {[%clk 0:02:55]} 2. Nf3 {[%clk 0:03:01]}  Nf6 {[%clk 0:02:55]} 3. c4 {[%clk 0:03:02]}  c6 {[%clk 0:02:55]} 4. g3 {[%clk 0:03:03]}  dxc4 {[%clk 0:02:53]} 5. Bg2 {[%clk 0:03:02]}  g6 {[%clk 0:02:53]} 6. O-O {[%clk 0:03:02]}  Bg7 {[%clk 0:02:53]} 7. a4 {[%clk 0:02:58]}  a5 {[%clk 0:02:48]} 8. Nbd2 {[%clk 0:02:47]}  b5 {[%clk 0:02:44]} 9. e4 {[%clk 0:02:41]}  O-O {[%clk 0:02:42]} 10. e5 {[%clk 0:02:37]}  Nd5 {[%clk 0:02:41]} 11. Ne4 {[%clk 0:02:36]}  Na6 {[%clk 0:02:37]} 12. h4 {[%clk 0:02:34]}  Bf5 {[%clk 0:02:32]} 13. Re1 {[%clk 0:02:31]}  Nab4 {[%clk 0:02:29]} 14. h5 {[%clk 0:02:31]}  Nd3 {[%clk 0:02:25]} 15. Re2 {[%clk 0:02:29]}  Qd7 {[%clk 0:02:12]} 16. h6 {[%clk 0:02:26]}  Bh8 {[%clk 0:02:11]} 17. Bg5 {[%clk 0:02:16]}  Nxb2 {[%clk 0:02:05]} 18. Rxb2 {[%clk 0:02:04]}  Bxe4 {[%clk 0:02:05]} 19. Qe1 {[%clk 0:01:57]}  Bxf3 {[%clk 0:01:46]} 20. Bxf3 {[%clk 0:01:58]}  c3 {[%clk 0:01:46]} 21. Re2 {[%clk 0:01:44]}  b4 {[%clk 0:01:44]} 22. e6 {[%clk 0:01:43]}  fxe6 {[%clk 0:01:44]} 23. Bg4 {[%clk 0:01:43]}  Rf5 {[%clk 0:01:40]} 24. Bh4 {[%clk 0:01:42]}  Bxd4 {[%clk 0:01:36]} 25. Rd1 {[%clk 0:01:37]}  c5 {[%clk 0:01:09]} 26. Rxd4 {[%clk 0:01:21]}  cxd4 {[%clk 0:01:08]} 27. Rxe6 {[%clk 0:01:22]}  c2 {[%clk 0:00:56]} 28. Bxf5 {[%clk 0:01:21]}  gxf5 {[%clk 0:00:56]} 29. Bg5 {[%clk 0:01:22]}  Kf7 {[%clk 0:00:50]} 30. Re5 {[%clk 0:01:14]}  e6 {[%clk 0:00:43]} 31. Qe2 {[%clk 0:01:12]}  Rc8 {[%clk 0:00:41]} 32. Bc1 {[%clk 0:01:06]}  Nf6 {[%clk 0:00:39]} 33. Rxa5 {[%clk 0:00:52]}  d3 {[%clk 0:00:30]} 34. Qe3 {[%clk 0:00:52]}  d2 {[%clk 0:00:27]} 35. Bxd2 {[%clk 0:00:50]}  Qxd2 {[%clk 0:00:18]} 36. Ra7+ {[%clk 0:00:50]}  Nd7 {[%clk 0:00:13]} 37. Qxd2 {[%clk 0:00:29]}  c1=Q+ {[%clk 0:00:13]} 38. Qxc1 {[%clk 0:00:29]}  Rxc1+ {[%clk 0:00:14]} 39. Kg2 {[%clk 0:00:29]}  Ke7 {[%clk 0:00:15]} 40. Rb7 {[%clk 0:00:30]}  Rb1 {[%clk 0:00:14]} 41. a5 {[%clk 0:00:29]}  Ra1 {[%clk 0:00:13]} 42. Rb5 {[%clk 0:00:27]}  b3 {[%clk 0:00:12]} 43. Kh3 {[%clk 0:00:24]}  b2 {[%clk 0:00:12]} 44. Rxb2 {[%clk 0:00:24]}  Rxa5 {[%clk 0:00:12]} 45. Kh4 {[%clk 0:00:25]}  Ra4+ {[%clk 0:00:12]} 46. f4 {[%clk 0:00:25]}  Ra8 {[%clk 0:00:11]} 47. Rb7 {[%clk 0:00:22]}  Rg8 {[%clk 0:00:09]} 48. Kh5 {[%clk 0:00:21]}  Rxg3 {[%clk 0:00:09]} 49. Ra7 {[%clk 0:00:21]}  Rg8 {[%clk 0:00:08]} 50. Rb7 {[%clk 0:00:20]}  Kd6 {[%clk 0:00:08]} 51. Kh4 {[%clk 0:00:18]}  Rg4+ {[%clk 0:00:07]} 52. Kh5 {[%clk 0:00:17]}  Nf6# {[%clk 0:00:07]} 0-1


[Site "https://www.chess.com"]

[Event "Titled Tuesday Blitz May 17 Late 2022"]
[White "Gallo Garcia, Kemel Antonio"]
[Black "Yurovskykh, Oleksandr"]
[WhiteFideId "3523896"]
[BlackFideId "14134020"]
[WhiteElo "2359"]
[BlackElo "2292"]
[Result "0-1"]
[Round "11"]
[TimeControl "180+1"]
[Date "2022.05.17"]
[WhiteClock "0:00:04"]
[BlackClock "0:00:08"]

1. e4 {[%clk 0:03:00]}  e6 {[%clk 0:03:00]} 2. d4 {[%clk 0:02:56]}  d5 {[%clk 0:03:00]} 3. e5 {[%clk 0:02:56]}  c5 {[%clk 0:03:00]} 4. c3 {[%clk 0:02:56]}  Qb6 {[%clk 0:03:00]} 5. Nf3 {[%clk 0:02:57]}  Nc6 {[%clk 0:03:00]} 6. Bd3 {[%clk 0:02:54]}  cxd4 {[%clk 0:02:59]} 7. O-O {[%clk 0:02:54]}  Bd7 {[%clk 0:02:57]} 8. Re1 {[%clk 0:02:47]}  Nge7 {[%clk 0:02:53]} 9. cxd4 {[%clk 0:02:37]}  Nxd4 {[%clk 0:02:50]} 10. Nxd4 {[%clk 0:02:38]}  Qxd4 {[%clk 0:02:50]} 11. Nc3 {[%clk 0:02:38]}  a6 {[%clk 0:02:47]} 12. Qe2 {[%clk 0:01:38]}  Nc6 {[%clk 0:02:41]} 13. a3 {[%clk 0:01:31]}  Qa7 {[%clk 0:02:29]} 14. Qg4 {[%clk 0:01:26]}  g6 {[%clk 0:02:21]} 15. Bg5 {[%clk 0:01:24]}  Be7 {[%clk 0:02:08]} 16. Bf6 {[%clk 0:01:21]}  Bxf6 {[%clk 0:02:03]} 17. exf6 {[%clk 0:01:22]}  O-O-O {[%clk 0:02:04]} 18. Rec1 {[%clk 0:01:16]}  Kb8 {[%clk 0:02:02]} 19. Qg3+ {[%clk 0:01:13]}  Ka8 {[%clk 0:02:02]} 20. b4 {[%clk 0:01:14]}  Qb8 {[%clk 0:01:59]} 21. Qf3 {[%clk 0:01:10]}  Ne5 {[%clk 0:01:53]} 22. Qe2 {[%clk 0:01:05]}  Nxd3 {[%clk 0:01:52]} 23. Qxd3 {[%clk 0:01:05]}  Rc8 {[%clk 0:01:48]} 24. b5 {[%clk 0:01:04]}  a5 {[%clk 0:01:22]} 25. Na4 {[%clk 0:01:00]}  b6 {[%clk 0:01:16]} 26. h4 {[%clk 0:00:51]}  Ka7 {[%clk 0:01:09]} 27. g3 {[%clk 0:00:48]}  Rxc1+ {[%clk 0:01:08]} 28. Rxc1 {[%clk 0:00:49]}  Rc8 {[%clk 0:01:09]} 29. Rxc8 {[%clk 0:00:48]}  Qxc8 {[%clk 0:01:07]} 30. h5 {[%clk 0:00:45]}  Qd8 {[%clk 0:00:33]} 31. hxg6 {[%clk 0:00:41]}  hxg6 {[%clk 0:00:33]} 32. Qd4 {[%clk 0:00:41]}  Bxb5 {[%clk 0:00:31]} 33. Nc3 {[%clk 0:00:41]}  Bc4 {[%clk 0:00:30]} 34. Ne4 {[%clk 0:00:38]}  Qc7 {[%clk 0:00:30]} 35. Ng5 {[%clk 0:00:37]}  e5 {[%clk 0:00:28]} 36. Qh4 {[%clk 0:00:36]}  d4 {[%clk 0:00:24]} 37. Qe4 {[%clk 0:00:35]}  d3 {[%clk 0:00:22]} 38. Nf3 {[%clk 0:00:35]}  b5 {[%clk 0:00:20]} 39. Nxe5 {[%clk 0:00:29]}  Qd6 {[%clk 0:00:19]} 40. Nc6+ {[%clk 0:00:29]}  Kb6 {[%clk 0:00:19]} 41. Ne5 {[%clk 0:00:18]}  d2 {[%clk 0:00:14]} 42. Qe3+ {[%clk 0:00:18]}  Ka6 {[%clk 0:00:09]} 43. Nxc4 {[%clk 0:00:04]}  d1=Q+ {[%clk 0:00:08]} 0-1


[Site "https://www.chess.com"]

[Event "Titled Tuesday Blitz May 17 Late 2022"]
[White "Hansen, Eric"]
[Black "Ostrovskiy, Aleksandr"]
[WhiteFideId "2606771"]
[BlackFideId "2034239"]
[WhiteElo "2568"]
[BlackElo "2340"]
[Result "1-0"]
[Round "11"]
[TimeControl "180+1"]
[Date "2022.05.17"]
[WhiteClock "0:00:11"]
[BlackClock "0:00:04"]

1. e4 {[%clk 0:03:00]}  d5 {[%clk 0:02:57]} 2. exd5 {[%clk 0:03:01]}  Nf6 {[%clk 0:02:57]} 3. Bb5+ {[%clk 0:02:58]}  Nbd7 {[%clk 0:02:56]} 4. d4 {[%clk 0:02:57]}  a6 {[%clk 0:02:50]} 5. Be2 {[%clk 0:02:56]}  Nxd5 {[%clk 0:02:45]} 6. c4 {[%clk 0:02:56]}  N5f6 {[%clk 0:02:45]} 7. Nc3 {[%clk 0:02:56]}  e6 {[%clk 0:02:46]} 8. Nf3 {[%clk 0:02:56]}  b6 {[%clk 0:02:46]} 9. O-O {[%clk 0:02:56]}  Bb7 {[%clk 0:02:47]} 10. Re1 {[%clk 0:02:57]}  Be7 {[%clk 0:02:43]} 11. Bf4 {[%clk 0:02:55]}  O-O {[%clk 0:02:40]} 12. Qd2 {[%clk 0:02:56]}  Re8 {[%clk 0:02:36]} 13. Rad1 {[%clk 0:02:55]}  Nf8 {[%clk 0:02:36]} 14. h3 {[%clk 0:02:55]}  Ng6 {[%clk 0:02:31]} 15. Bh2 {[%clk 0:02:51]}  Ne4 {[%clk 0:02:29]} 16. Qe3 {[%clk 0:02:46]}  Nxc3 {[%clk 0:02:24]} 17. bxc3 {[%clk 0:02:47]}  Bd6 {[%clk 0:02:20]} 18. Ne5 {[%clk 0:02:38]}  Bxe5 {[%clk 0:02:06]} 19. dxe5 {[%clk 0:02:23]}  Qe7 {[%clk 0:02:05]} 20. c5 {[%clk 0:02:24]}  bxc5 {[%clk 0:01:54]} 21. Rb1 {[%clk 0:02:18]}  Rab8 {[%clk 0:01:46]} 22. Bg3 {[%clk 0:02:12]}  Red8 {[%clk 0:01:41]} 23. Rb3 {[%clk 0:02:06]}  Bd5 {[%clk 0:01:31]} 24. c4 {[%clk 0:02:06]}  Bc6 {[%clk 0:01:18]} 25. Reb1 {[%clk 0:01:59]}  Rb4 {[%clk 0:01:13]} 26. Rc1 {[%clk 0:01:47]}  h6 {[%clk 0:01:10]} 27. Qc3 {[%clk 0:01:39]}  Nh4 {[%clk 0:01:00]} 28. Bf1 {[%clk 0:01:27]}  Nf5 {[%clk 0:01:00]} 29. Bf4 {[%clk 0:01:28]}  Nd4 {[%clk 0:00:55]} 30. Ra3 {[%clk 0:01:28]}  Qh4 {[%clk 0:00:44]} 31. Qg3 {[%clk 0:01:15]}  Qxg3 {[%clk 0:00:42]} 32. Bxg3 {[%clk 0:01:14]}  Rb6 {[%clk 0:00:42]} 33. Bh2 {[%clk 0:01:09]}  Rdb8 {[%clk 0:00:39]} 34. Bf4 {[%clk 0:01:07]}  Rb1 {[%clk 0:00:28]} 35. Bd3 {[%clk 0:00:57]}  R1b6 {[%clk 0:00:19]} 36. Ra5 {[%clk 0:00:52]}  Bb7 {[%clk 0:00:05]} 37. Rxc5 {[%clk 0:00:48]}  Rc6 {[%clk 0:00:06]} 38. Ra5 {[%clk 0:00:46]}  Rd8 {[%clk 0:00:03]} 39. Bf1 {[%clk 0:00:39]}  Rb6 {[%clk 0:00:02]} 40. Ra3 {[%clk 0:00:27]}  Rb2 {[%clk 0:00:02]} 41. Re1 {[%clk 0:00:20]}  c5 {[%clk 0:00:03]} 42. Ra5 {[%clk 0:00:15]}  Rc8 {[%clk 0:00:03]} 43. Be3 {[%clk 0:00:14]}  Nc2 {[%clk 0:00:03]} 44. Re2 {[%clk 0:00:14]}  Rd8 {[%clk 0:00:03]} 45. Bc1 {[%clk 0:00:12]}  Rb1 {[%clk 0:00:03]} 46. Rxc2 {[%clk 0:00:12]}  Rd1 {[%clk 0:00:04]} 47. Rxc5 {[%clk 0:00:11]}  Rbxc1 {[%clk 0:00:04]} 48. Rxc1 {[%clk 0:00:12]}  Rxc1 {[%clk 0:00:05]} 49. f3 {[%clk 0:00:12]}  g5 {[%clk 0:00:05]} 50. Rc7 {[%clk 0:00:12]}  Bd5 {[%clk 0:00:04]} 51. Kf2 {[%clk 0:00:10]}  Rc2+ {[%clk 0:00:03]} 52. Ke3 {[%clk 0:00:10]}  Kg7 {[%clk 0:00:04]} 53. Bd3 {[%clk 0:00:10]}  Rc1 {[%clk 0:00:04]} 54. Kd2 {[%clk 0:00:10]}  Rg1 {[%clk 0:00:03]} 55. cxd5 {[%clk 0:00:11]}  Rxg2+ {[%clk 0:00:04]} 56. Ke3 {[%clk 0:00:11]}  exd5 {[%clk 0:00:05]} 57. e6 {[%clk 0:00:12]}  Kf6 {[%clk 0:00:04]} 58. e7 {[%clk 0:00:10]}  Rg1 {[%clk 0:00:04]} 59. e8=Q {[%clk 0:00:11]}  d4+ {[%clk 0:00:04]} 60. Kd2 {[%clk 0:00:11]} 1-0


[Site "https://www.chess.com"]

[Event "Titled Tuesday Blitz May 17 Late 2022"]
[White "Indjic, Aleksandar"]
[Black "Sadhwani, Raunak"]
[WhiteFideId "911925"]
[BlackFideId "35093487"]
[WhiteElo "2616"]
[BlackElo "2616"]
[Result "1-0"]
[Round "11"]
[TimeControl "180+1"]
[Date "2022.05.17"]
[WhiteClock "0:00:31"]
[BlackClock "0:00:06"]

1. d4 {[%clk 0:03:00]}  Nf6 {[%clk 0:02:59]} 2. c4 {[%clk 0:03:01]}  g6 {[%clk 0:02:59]} 3. g3 {[%clk 0:03:00]}  Bg7 {[%clk 0:02:59]} 4. Bg2 {[%clk 0:03:00]}  O-O {[%clk 0:03:00]} 5. Nc3 {[%clk 0:02:59]}  d6 {[%clk 0:02:59]} 6. Nf3 {[%clk 0:02:59]}  Nbd7 {[%clk 0:02:59]} 7. O-O {[%clk 0:02:58]}  e5 {[%clk 0:02:59]} 8. e4 {[%clk 0:02:58]}  Re8 {[%clk 0:02:57]} 9. h3 {[%clk 0:02:57]}  exd4 {[%clk 0:02:58]} 10. Nxd4 {[%clk 0:02:58]}  Nc5 {[%clk 0:02:58]} 11. Re1 {[%clk 0:02:57]}  a5 {[%clk 0:02:59]} 12. Qc2 {[%clk 0:02:49]}  Bd7 {[%clk 0:02:22]} 13. Be3 {[%clk 0:02:46]}  Qc8 {[%clk 0:02:22]} 14. Kh2 {[%clk 0:02:45]}  Re5 {[%clk 0:02:22]} 15. f3 {[%clk 0:02:34]}  Rh5 {[%clk 0:02:12]} 16. h4 {[%clk 0:02:34]}  h6 {[%clk 0:02:06]} 17. Kg1 {[%clk 0:02:33]}  Re5 {[%clk 0:02:05]} 18. Rad1 {[%clk 0:02:29]}  Re8 {[%clk 0:02:02]} 19. Ndb5 {[%clk 0:02:28]}  Kh7 {[%clk 0:01:50]} 20. b3 {[%clk 0:02:25]}  Bc6 {[%clk 0:01:49]} 21. Kh2 {[%clk 0:02:09]}  Ne6 {[%clk 0:01:48]} 22. Qd2 {[%clk 0:01:53]}  Nd7 {[%clk 0:01:47]} 23. Nd5 {[%clk 0:01:49]}  Ne5 {[%clk 0:01:44]} 24. Qe2 {[%clk 0:01:29]}  a4 {[%clk 0:01:42]} 25. f4 {[%clk 0:01:27]}  Nd7 {[%clk 0:01:36]} 26. f5 {[%clk 0:01:22]}  Bxd5 {[%clk 0:01:35]} 27. exd5 {[%clk 0:01:17]}  Nef8 {[%clk 0:01:31]} 28. Bh3 {[%clk 0:01:15]}  axb3 {[%clk 0:01:30]} 29. axb3 {[%clk 0:01:16]}  Qb8 {[%clk 0:01:22]} 30. Qf2 {[%clk 0:01:16]}  Nf6 {[%clk 0:01:17]} 31. fxg6+ {[%clk 0:01:05]}  fxg6 {[%clk 0:01:18]} 32. Bd4 {[%clk 0:00:58]}  Rxe1 {[%clk 0:01:10]} 33. Rxe1 {[%clk 0:00:58]}  Qd8 {[%clk 0:01:11]} 34. Rf1 {[%clk 0:00:45]}  N8d7 {[%clk 0:00:35]} 35. Bxd7 {[%clk 0:00:40]}  Qxd7 {[%clk 0:00:36]} 36. Bxf6 {[%clk 0:00:40]}  Rf8 {[%clk 0:00:36]} 37. Qd4 {[%clk 0:00:36]}  Qe8 {[%clk 0:00:16]} 38. Nc3 {[%clk 0:00:31]}  Kg8 {[%clk 0:00:06]} 39. Ne4 {[%clk 0:00:31]} 1-0


[Site "https://www.chess.com"]

[Event "Titled Tuesday Blitz May 17 Late 2022"]
[White "Ivanisevic, Ivan"]
[Black "Chigaev, Maksim"]
[WhiteFideId "912417"]
[BlackFideId "4108116"]
[WhiteElo "2495"]
[BlackElo "2457"]
[Result "0-1"]
[Round "11"]
[TimeControl "180+1"]
[Date "2022.05.17"]
[WhiteClock "0:00:15"]
[BlackClock "0:00:30"]

1. d4 {[%clk 0:02:51]}  d5 {[%clk 0:03:00]} 2. c4 {[%clk 0:02:51]}  c6 {[%clk 0:03:00]} 3. Nf3 {[%clk 0:02:50]}  Nf6 {[%clk 0:03:01]} 4. Nc3 {[%clk 0:02:49]}  dxc4 {[%clk 0:02:58]} 5. a4 {[%clk 0:02:49]}  Bf5 {[%clk 0:02:56]} 6. Ne5 {[%clk 0:02:50]}  e6 {[%clk 0:02:52]} 7. f3 {[%clk 0:02:48]}  Bb4 {[%clk 0:02:53]} 8. Nxc4 {[%clk 0:02:39]}  O-O {[%clk 0:02:50]} 9. Kf2 {[%clk 0:02:36]}  c5 {[%clk 0:02:47]} 10. e4 {[%clk 0:02:36]}  Bxc3 {[%clk 0:02:16]} 11. bxc3 {[%clk 0:02:37]}  Bxe4 {[%clk 0:02:16]} 12. fxe4 {[%clk 0:02:36]}  Nxe4+ {[%clk 0:02:17]} 13. Kg1 {[%clk 0:02:34]}  Nxc3 {[%clk 0:02:17]} 14. Qd2 {[%clk 0:02:25]}  Qxd4+ {[%clk 0:02:16]} 15. Qxd4 {[%clk 0:02:17]}  cxd4 {[%clk 0:02:17]} 16. Bb2 {[%clk 0:02:17]}  Nc6 {[%clk 0:02:12]} 17. h4 {[%clk 0:02:17]}  Rfd8 {[%clk 0:02:10]} 18. Rh3 {[%clk 0:02:16]}  Nd5 {[%clk 0:01:59]} 19. Rd1 {[%clk 0:02:11]}  e5 {[%clk 0:01:52]} 20. Rb3 {[%clk 0:02:06]}  b6 {[%clk 0:01:49]} 21. Bd3 {[%clk 0:02:04]}  g6 {[%clk 0:01:44]} 22. g4 {[%clk 0:02:01]}  Rac8 {[%clk 0:01:43]} 23. Be4 {[%clk 0:01:53]}  f6 {[%clk 0:01:33]} 24. Rb5 {[%clk 0:01:03]}  Ncb4 {[%clk 0:01:23]} 25. Bxd5+ {[%clk 0:00:34]}  Nxd5 {[%clk 0:01:22]} 26. Rc1 {[%clk 0:00:34]}  Nf4 {[%clk 0:01:21]} 27. Kf1 {[%clk 0:00:30]}  Nd3 {[%clk 0:01:11]} 28. Rd1 {[%clk 0:00:30]}  Rxc4 {[%clk 0:01:05]} 29. Rxd3 {[%clk 0:00:30]}  Rxa4 {[%clk 0:01:02]} 30. g5 {[%clk 0:00:28]}  e4 {[%clk 0:01:03]} 31. Rd1 {[%clk 0:00:28]}  f5 {[%clk 0:00:57]} 32. Re5 {[%clk 0:00:25]}  Rc4 {[%clk 0:00:41]} 33. Rd2 {[%clk 0:00:23]}  a5 {[%clk 0:00:39]} 34. Ke2 {[%clk 0:00:20]}  a4 {[%clk 0:00:35]} 35. Re7 {[%clk 0:00:21]}  b5 {[%clk 0:00:32]} 36. Rb7 {[%clk 0:00:20]}  f4 {[%clk 0:00:32]} 37. Rxb5 {[%clk 0:00:18]}  f3+ {[%clk 0:00:32]} 38. Kd1 {[%clk 0:00:17]}  e3 {[%clk 0:00:32]} 39. Rd3 {[%clk 0:00:15]}  f2 {[%clk 0:00:32]} 40. Ke2 {[%clk 0:00:15]}  Rc2+ {[%clk 0:00:29]} 41. Kf1 {[%clk 0:00:15]}  Rf8 {[%clk 0:00:30]} 0-1


[Site "https://www.chess.com"]